bitfinex-derivatives/quotes_BTCF0:USTF0_20251230
["timestamp","ask_amount","ask_price","bid_price","bid_amount"]
[1767066330720,0.011467,87319.0,87298.0,0.09744]
[1767066331020,0.0574,87318.0,87297.0,0.15484]
[1767066331833,0.00017177,87316.0,87299.0,0.00017177]
[1767066332528,0.15615325,87310.0,87290.0,0.15615325]
[1767066332828,0.0114678,87312.0,87291.0,0.15484]
[1767066333131,0.01163917,87316.0,87291.0,0.15484]
[1767066333331,0.15615325,87310.0,87291.0,0.15484]
[1767066333529,0.15615325,87310.0,87292.0,0.11454753]
[1767066333725,0.15615325,87310.0,87292.0,0.1147193]
[1767066337840,0.0574,87311.0,87292.0,0.1147193]
[1767066338036,0.15615325,87310.0,87292.0,0.1147193]
[1767066338338,0.15615325,87310.0,87293.0,0.0114703]
[1767066339733,0.0574,87316.0,87303.0,0.0114689]
[1767066339928,0.0114619,87358.0,87308.0,0.0114683]
[1767066339929,0.0574,87321.0,87308.0,0.0114683]
[1767066340231,0.15615325,87330.0,87301.0,0.09744]
[1767066340537,0.15484,87329.0,87301.0,0.09744]
[1767066341037,0.00017177,87324.0,87306.0,0.00017177]
[1767066341241,0.00017177,87324.0,87309.0,0.0114682]
[1767066344339,0.00017177,87324.0,87310.0,0.15615325]
[1767066345444,0.00017177,87324.0,87308.0,0.0574]
[1767066346332,0.00017177,87324.0,87310.0,0.15615325]
[1767066348640,0.00017177,87324.0,87311.0,0.0114679]
[1767066349030,0.00017177,87324.0,87314.0,0.0114675]
[1767066349439,0.09744,87332.0,87317.0,0.0114671]
[1767066349742,0.09744,87332.0,87320.0,0.15615325]
[1767066351931,0.09744,87332.0,87315.0,0.0574]
[1767066352332,0.09744,87332.0,87320.0,0.15615325]
[1767066353631,0.0574,87333.0,87316.0,0.0114672]
[1767066353938,0.0574,87333.0,87320.0,0.15615325]
[1767066354729,0.00017177,87335.0,87320.0,0.15615325]
[1767066354935,0.00017177,87335.0,87311.0,0.09744]
[1767066354936,0.0114618,87358.0,87322.0,0.0114665]
[1767066355140,0.1807666,87357.0,87330.0,0.15615325]
[1767066355343,0.0259266,87356.0,87330.0,0.15615325]
[1767066355634,0.0259266,87355.0,87330.0,0.15615325]
[1767066355837,0.0259266,87354.0,87330.0,0.15615325]
[1767066356033,0.15615325,87350.0,87333.0,0.00017177]
[1767066356236,0.0574,87349.0,87333.0,0.00017177]
[1767066357542,0.0574,87348.0,87333.0,0.00017177]
[1767066359041,0.00228918,87368.0,87338.0,0.16761765]
[1767066359241,0.17798358,87367.0,87338.0,0.16761765]
[1767066359447,0.02590358,87366.0,87338.0,0.16761765]
[1767066359750,0.02590358,87366.0,87339.0,0.11449442]
[1767066359940,0.02590358,87366.0,87340.0,0.0114641]
[1767066360142,0.02590358,87366.0,87339.0,0.11449442]
[1767066360347,0.15615325,87350.0,87336.0,0.0574]
[1767066361040,0.0574,87353.0,87336.0,0.0574]
[1767066361234,0.15615325,87350.0,87333.0,0.00017177]
[1767066361446,0.0574,87353.0,87333.0,0.00017177]
[1767066361642,0.15615325,87350.0,87333.0,0.00017177]
[1767066361946,0.0574,87353.0,87333.0,0.00017177]
[1767066362146,0.0688625,87353.0,87333.0,0.00017177]
[1767066362449,0.15615325,87350.0,87333.0,0.00017177]
[1767066362946,0.0688625,87353.0,87333.0,0.00017177]
[1767066363153,0.15615325,87350.0,87333.0,0.00017177]
[1767066363447,0.0688625,87353.0,87333.0,0.00017177]
[1767066363648,0.15615325,87350.0,87333.0,0.00017177]
[1767066364649,0.0574,87353.0,87333.0,0.00017177]
[1767066364953,0.15615325,87350.0,87333.0,0.00017177]
[1767066369749,0.0574,87353.0,87333.0,0.00017177]
[1767066370447,0.0574,87353.0,87340.0,0.15615325]
[1767066370844,0.0574,87353.0,87333.0,0.00017177]
[1767066377961,0.15615325,87350.0,87333.0,0.00017177]
[1767066378957,0.15615325,87350.0,87333.0,0.03240177]
[1767066380059,0.15632502,87350.0,87333.0,0.03257354]
[1767066380448,0.15632502,87350.0,87307.0,0.17519961]
[1767066380449,0.15615325,87343.0,87321.0,0.0974]
[1767066380652,0.15615325,87340.0,87322.0,0.0574]
[1767066381360,0.0574,87342.0,87326.0,0.0114658]
[1767066381951,0.0574,87342.0,87325.0,0.00017177]
[1767066382560,0.0574,87342.0,87330.0,0.15615325]
[1767066383162,0.0574,87342.0,87325.0,0.01163777]
[1767066383455,0.0574,87342.0,87328.0,0.0114656]
[1767066383662,0.0574,87342.0,87331.0,0.0114652]
[1767066384570,0.0574,87342.0,87327.0,0.0114657]
[1767066384861,0.0574,87342.0,87330.0,0.15615325]
[1767066386358,0.0574,87342.0,87330.0,0.16761865]
[1767066386957,0.00017177,87350.0,87330.0,0.16761865]
[1767066387260,0.1548,87349.0,87333.0,0.011465]
[1767066389860,0.15632502,87350.0,87333.0,0.011465]
[1767066390062,0.0574,87349.0,87333.0,0.011465]
[1767066390262,0.00017177,87350.0,87339.0,0.15615325]
[1767066390568,0.0574,87350.0,87342.0,0.0114638]
[1767066390766,0.0574,87350.0,87339.0,0.15615325]
[1767066392167,0.0574,87350.0,87340.0,0.0114641]
[1767066392861,0.0114591,87379.0,87348.0,0.011463]
[1767066393166,0.1548,87367.0,87347.0,0.0114631]
[1767066394061,0.1548,87367.0,87348.0,0.00017177]
[1767066399974,0.0114597,87374.0,87348.0,0.00017177]
[1767066400178,0.1548,87367.0,87348.0,0.00017177]
[1767066404677,0.0114608,87366.0,87348.0,0.00017177]
[1767066404876,0.1548,87367.0,87329.0,0.08217485]
[1767066405081,0.0257898,87366.0,87334.0,0.0974]
[1767066405281,0.1548,87367.0,87333.0,0.0974]
[1767066405581,0.0257902,87366.0,87333.0,0.0974]
[1767066405774,0.1548,87367.0,87333.0,0.0974]
[1767066405975,0.00017177,87358.0,87341.0,0.00017177]
[1767066406180,0.1548,87357.0,87341.0,0.00017177]
[1767066407388,0.00017177,87358.0,87341.0,0.01163577]
[1767066408983,0.00017177,87358.0,87341.0,0.06903577]
[1767066409284,0.00017177,87358.0,87344.0,0.0114635]
[1767066409476,0.00228918,87368.0,87347.0,0.0114631]
[1767066409984,0.00228918,87368.0,87348.0,0.11448262]
[1767066411285,0.00103918,87368.0,87348.0,0.11448262]
[1767066413077,0.00103918,87368.0,87341.0,0.00017177]
[1767066413277,0.0114619,87358.0,87341.0,0.00017177]
[1767066414184,0.0114628,87350.0,87334.0,0.0574]
[1767066414381,0.0114628,87350.0,87331.0,0.0574]
[1767066414888,0.0574,87352.0,87331.0,0.0574]
[1767066415079,0.00017177,87350.0,87333.0,0.00017177]
[1767066417590,0.00017177,87350.0,87333.0,0.01163677]
[1767066418388,0.0574,87359.0,87333.0,0.01163677]
[1767066418389,0.10267519,87396.0,87340.0,0.15596649]
[1767066418590,0.15596649,87400.0,87331.0,0.0574]
[1767066418591,0.16773684,87400.0,87341.0,0.19697485]
[1767066418774,0.15596649,87380.0,87331.0,0.14432273]
[1767066418974,0.155,87379.0,87342.0,0.11449311]
[1767066419183,0.155,87379.0,87349.0,0.0114628]
[1767066419384,0.155,87379.0,87355.0,0.00017177]
[1767066419574,0.0114591,87378.0,87333.0,0.1144682]
[1767066419779,0.15495,87379.0,87320.0,0.0576]
[1767066419780,0.15596649,87360.0,87326.0,0.0114659]
[1767066419992,0.0114618,87358.0,87316.0,0.0114672]
[1767066420191,0.155,87357.0,87319.0,0.0114668]
[1767066420488,0.00017177,87347.0,87329.0,0.00017177]
[1767066420679,0.0974,87346.0,87329.0,0.00017177]
[1767066420879,0.0576,87345.0,87329.0,0.00017177]
[1767066421285,0.0576,87344.0,87329.0,0.00017177]
[1767066421477,0.155,87344.0,87329.0,0.00017177]
[1767066421683,0.155,87344.0,87319.0,0.0114668]
[1767066422593,0.155,87344.0,87320.0,0.11450622]
[1767066422784,0.155,87344.0,87323.0,0.00017177]
[1767066422984,0.155,87344.0,87308.0,0.01375905]
[1767066423181,0.0114642,87340.0,87308.0,0.00229075]
[1767066424186,0.0114642,87340.0,87315.0,0.00017177]
[1767066424494,0.155,87344.0,87315.0,0.00017177]
[1767066425091,0.00017177,87347.0,87315.0,0.00017177]
[1767066426586,0.30116,87346.0,87315.0,0.00017177]
[1767066426792,0.39856,87346.0,87315.0,0.00017177]
[1767066427086,0.00017177,87347.0,87315.0,0.00017177]
[1767066427297,0.39856,87346.0,87315.0,0.01163907]
[1767066427884,0.0576,87345.0,87315.0,0.01163907]
[1767066428183,0.39856,87344.0,87315.0,0.01163907]
[1767066428382,0.00017177,87347.0,87284.0,0.08194915]
[1767066428590,0.0114644,87339.0,87298.0,0.0114695]
[1767066428787,0.0114647,87336.0,87298.0,0.0114695]
[1767066428993,0.0114652,87333.0,87298.0,0.0114695]
[1767066429391,0.00017177,87324.0,87307.0,0.00017177]
[1767066429694,0.00017177,87324.0,87298.0,0.0114695]
[1767066429695,0.155,87323.0,87293.0,0.0114702]
[1767066430695,0.155,87323.0,87299.0,0.00017177]
[1767066434998,0.00017177,87324.0,87278.0,0.05989154]
[1767066434999,0.011467,87318.0,87284.0,0.0114713]
[1767066435302,0.15504,87317.0,87283.0,0.0114715]
[1767066435501,0.01144,87316.0,87283.0,0.0114715]
[1767066435997,0.01144,87316.0,87291.0,0.00011454]
[1767066436196,0.00017177,87312.0,87291.0,0.00011454]
[1767066437295,0.0576,87311.0,87292.0,0.0114703]
[1767066437602,0.15504,87310.0,87292.0,0.0114703]
[1767066441407,0.15504,87309.0,87292.0,0.0114703]
[1767066442103,0.15504,87309.0,87291.0,0.00011454]
[1767066443208,0.15504,87308.0,87291.0,0.00011454]
[1767066443802,0.00017177,87312.0,87291.0,0.00011454]
[1767066444001,0.15504,87311.0,87291.0,0.00011454]
[1767066444203,0.00699586,87373.0,87292.0,0.11454753]
[1767066444410,0.0114605,87368.0,87324.0,0.0114662]
[1767066444701,0.00228918,87368.0,87337.0,0.0114644]
[1767066445103,0.0718211,87365.0,87337.0,0.0114644]
[1767066445297,0.0718211,87365.0,87341.0,0.0114639]
[1767066445602,0.00017177,87360.0,87342.0,0.00017177]
[1767066445795,0.05764,87359.0,87342.0,0.00017177]
[1767066446401,0.05759,87359.0,87342.0,0.00017177]
[1767066447017,0.00017177,87360.0,87342.0,0.00017177]
[1767066447311,0.15508,87359.0,87342.0,0.00017177]
[1767066448902,0.00017177,87360.0,87342.0,0.00017177]
[1767066449104,0.2269011,87359.0,87342.0,0.00017177]
[1767066449311,0.2269011,87359.0,87342.0,1.77e-06]
[1767066449613,0.2269011,87359.0,87331.0,0.0114653]
[1767066449818,0.15508,87359.0,87331.0,0.0114653]
[1767066450408,0.15508,87359.0,87336.0,0.00011454]
[1767066451016,7e-08,87360.0,87336.0,0.00011454]
[1767066451206,0.09062507,87401.0,87364.0,0.0114609]
[1767066451412,0.09062507,87401.0,87369.0,0.0114603]
[1767066451618,0.05764,87397.0,87369.0,0.0114603]
[1767066451917,0.0718211,87391.0,87363.0,0.011461]
[1767066452216,0.00017166,87386.0,87368.0,0.00017166]
[1767066457328,0.07199276,87386.0,87368.0,0.00017166]
[1767066460524,0.07199276,87386.0,87362.0,0.0974]
[1767066460720,0.0718211,87384.0,87360.0,0.06423125]
[1767066460923,0.0718211,87384.0,87355.0,0.011462]
[1767066460924,0.0718211,87384.0,87359.0,0.0974]
[1767066461625,0.0718211,87384.0,87363.0,0.00011428]
[1767066465612,0.00017166,87386.0,87370.0,0.16730286]
[1767066465818,0.0974,87390.0,87370.0,0.26470286]
[1767066466016,0.0718211,87393.0,87370.0,0.26470286]
[1767066466219,0.0718211,87393.0,87373.0,0.0114597]
[1767066466413,0.0718211,87393.0,87380.0,0.15584276]
[1767066466725,0.0718211,87393.0,87373.0,0.0114597]
[1767066469728,0.0718211,87393.0,87373.0,0.0690597]
[1767066471523,0.09736,87404.0,87381.0,0.0114587]
[1767066471723,0.0202,87414.0,87382.0,0.15496]
[1767066471925,0.0114545,87413.0,87382.0,0.15496]
[1767066472529,0.00017166,87406.0,87389.0,0.00017166]
[1767066472731,0.0576,87405.0,87389.0,0.00017166]
[1767066475429,0.0576,87405.0,87383.0,0.05756]
[1767066475924,0.0202,87404.0,87383.0,0.05756]
[1767066476436,0.0202,87404.0,87385.0,0.00017166]
[1767066480341,0.10267519,87440.0,87385.0,0.00017166]
[1767066480534,0.08202561,87450.0,87410.0,0.15584276]
[1767066480535,0.05764,87449.0,87410.0,0.15584276]
[1767066480738,0.05764,87449.0,87391.0,0.0114574]
[1767066480739,0.011451,87440.0,87411.0,0.155]
[1767066480934,0.05764,87449.0,87414.0,0.0114543]
[1767066481135,0.05764,87449.0,87410.0,0.0114549]
[1767066481353,0.00017156,87438.0,87421.0,0.00017156]
[1767066481536,0.00017156,87438.0,87412.0,0.05764]
[1767066481537,0.155,87437.0,87412.0,0.05764]
[1767066481836,0.155,87437.0,87390.0,0.06123213]
[1767066481837,0.155,87437.0,87397.0,0.0114566]
[1767066482045,0.0114531,87425.0,87398.0,0.155]
[1767066482342,0.0114535,87422.0,87399.0,0.155]
[1767066482533,0.00017156,87420.0,87393.0,0.0114572]
[1767066482844,0.0114548,87412.0,87394.0,0.13]
[1767066483045,0.05764,87415.0,87390.0,0.05764]
[1767066483342,0.05764,87415.0,87390.0,0.155]
[1767066483543,0.05764,87415.0,87394.0,0.00011415]
[1767066484938,0.0114544,87414.0,87394.0,0.00011415]
[1767066485136,0.0114549,87411.0,87394.0,0.00011415]
[1767066485544,0.05764,87415.0,87394.0,0.00011415]
[1767066486042,0.0114545,87414.0,87389.0,0.0576]
[1767066486439,0.09736,87416.0,87390.0,0.15584276]
[1767066486845,0.09736,87416.0,87389.0,0.0576]
[1767066488447,0.09736,87416.0,87391.0,0.0114574]
[1767066489647,0.09736,87416.0,87389.0,0.0576]
[1767066489942,0.0114548,87412.0,87381.0,0.0114586]
[1767066490145,0.0114548,87412.0,87382.0,0.15496]
[1767066490651,0.0114548,87412.0,87383.0,0.15496]
[1767066491535,0.0114551,87409.0,87381.0,0.0114586]
[1767066491747,0.0114551,87409.0,87382.0,0.15496]
[1767066491933,0.0576,87413.0,87383.0,0.15496]
[1767066492135,0.00017156,87407.0,87375.0,0.0114595]
[1767066492347,0.1088155,87406.0,87379.0,0.011459]
[1767066492543,0.09736,87406.0,87380.0,0.15581937]
[1767066493552,0.09736,87406.0,87380.0,0.15576937]
[1767066494245,0.09736,87406.0,87380.0,0.15581937]
[1767066494546,0.09736,87406.0,87381.0,0.0114586]
[1767066495343,0.09731,87406.0,87381.0,0.0114586]
[1767066495543,0.0576,87405.0,87381.0,0.0114586]
[1767066496755,0.0576,87405.0,87377.0,0.0114592]
[1767066497050,0.0114562,87401.0,87373.0,0.0114597]
[1767066497253,0.0114562,87401.0,87375.0,0.0114595]
[1767066497647,0.0690556,87405.0,87376.0,0.15496]
[1767066497954,0.0114562,87401.0,87376.0,0.15496]
[1767066498356,0.0114562,87401.0,87375.0,0.0114595]
[1767066498549,0.0114562,87401.0,87376.0,0.0576]
[1767066498847,0.0114562,87401.0,87368.0,0.06354652]
[1767066499053,0.0114571,87394.0,87369.0,0.15496]
[1767066499350,0.0576,87393.0,87369.0,0.15496]
[1767066499552,0.0576,87393.0,87369.0,0.07496]
[1767066499954,0.0576,87393.0,87368.0,0.00228918]
[1767066500152,0.0576,87393.0,87369.0,0.15496]
[1767066500153,0.00017166,87389.0,87369.0,0.15496]
[1767066500350,0.00017166,87389.0,87369.0,0.1664202]
[1767066500549,0.00017166,87389.0,87372.0,0.0114599]
[1767066501053,0.00017166,87389.0,87369.0,0.15496]
[1767066501552,0.00017166,87389.0,87368.0,0.00228918]
[1767066501753,0.00017166,87389.0,87369.0,0.15496]
[1767066501954,0.00017166,87389.0,87368.0,0.00228918]
[1767066505150,0.00017166,87389.0,87369.0,0.0114603]
[1767066505459,0.00017166,87389.0,87368.0,0.00228918]
[1767066510970,0.00017166,87389.0,87368.0,0.05984918]
[1767066511165,0.00017166,87389.0,87368.0,0.00228918]
[1767066515570,0.00017166,87389.0,87368.0,0.01374958]
[1767066516275,0.00017166,87389.0,87372.0,0.0114599]
[1767066517761,0.00017166,87389.0,87368.0,0.01374958]
[1767066519867,0.00017166,87389.0,87369.0,0.05756]
[1767066522578,0.00017166,87389.0,87368.0,0.06354652]
[1767066522776,0.00017166,87389.0,87368.0,0.05984918]
[1767066523077,0.00017166,87389.0,87368.0,0.12110652]
[1767066523573,0.00017166,87389.0,87369.0,0.0114603]
[1767066523768,0.00017166,87389.0,87369.0,0.07271764]
[1767066524169,0.00017166,87389.0,87369.0,0.06125734]
[1767066525173,0.00017166,87389.0,87370.0,0.07271754]
[1767066525479,0.00017166,87389.0,87371.0,0.06125734]
[1767066526370,0.0576,87393.0,87371.0,0.06125734]
[1767066526571,0.09736,87395.0,87374.0,0.06125734]
[1767066526776,0.09736,87395.0,87377.0,0.0114592]
[1767066527367,0.09753166,87395.0,87377.0,0.0728882]
[1767066527765,0.05756,87412.0,87384.0,0.0114583]
[1767066527969,0.02394017,87411.0,87386.0,0.011458]
[1767066528178,0.05756,87412.0,87388.0,0.0114578]
[1767066528376,0.05756,87412.0,87387.0,0.05756]
[1767066528764,0.00017166,87408.0,87391.0,0.00017166]
[1767066529078,0.00017166,87408.0,87391.0,0.05773166]
[1767066530270,0.02773166,87412.0,87391.0,0.05773166]
[1767066531175,0.02773166,87412.0,87392.0,0.0114572]
[1767066531581,0.02773166,87412.0,87395.0,0.0114568]
[1767066532178,0.02790332,87412.0,87395.0,0.0114568]
[1767066532369,0.02790332,87412.0,87391.0,0.06918906]
[1767066532775,0.02790332,87412.0,87391.0,0.05773166]
[1767066536488,0.02790332,87412.0,87391.0,0.00017166]
[1767066536788,0.02790332,87412.0,87392.0,0.15488]
[1767066537483,0.0114549,87411.0,87391.0,0.00017166]
[1767066537674,0.0114549,87411.0,87391.0,0.05769166]
[1767066539479,0.02790332,87412.0,87391.0,0.05769166]
[1767066539678,0.02790332,87412.0,87392.0,0.0114573]
[1767066539987,0.02790332,87412.0,87391.0,0.05769166]
[1767066540988,0.02790332,87412.0,87391.0,0.06914906]
[1767066542876,0.02790332,87412.0,87391.0,0.05769166]
[1767066544087,0.0114549,87410.0,87391.0,0.00017166]
[1767066544287,0.0114556,87406.0,87391.0,0.00017166]
[1767066545493,0.09736,87406.0,87391.0,0.00017166]
[1767066545992,0.0114558,87404.0,87391.0,0.00017166]
[1767066546180,0.05752,87403.0,87391.0,0.00017166]
[1767066547381,0.05752,87403.0,87383.0,0.06125734]
[1767066547687,0.05752,87403.0,87383.0,0.05752]
[1767066548390,0.05752,87403.0,87372.0,0.06403926]
[1767066548391,0.0114574,87392.0,87379.0,0.05752]
[1767066548582,0.0114574,87392.0,87384.0,0.00017166]
[1767066548891,0.0114574,87392.0,87379.0,0.05752]
[1767066549090,0.0114574,87392.0,87377.0,0.06125734]
[1767066549284,0.0114574,87392.0,87378.0,0.05748]
[1767066550393,0.0114574,87392.0,87378.0,0.11873734]
[1767066550594,0.0114574,87392.0,87379.0,0.05748]
[1767066551190,0.00017166,87394.0,87379.0,0.05748]
[1767066551694,0.0114572,87393.0,87379.0,0.05748]
[1767066551991,0.0114572,87393.0,87380.0,0.05748]
[1767066552293,0.0114572,87393.0,87378.0,0.06125734]
[1767066552486,0.0114572,87393.0,87379.0,0.05748]
[1767066552895,0.0114573,87393.0,87376.0,0.00017166]
[1767066556093,0.0114578,87389.0,87376.0,0.00017166]
[1767066556396,0.0114572,87393.0,87376.0,0.00017166]
[1767066557499,0.00017166,87394.0,87376.0,0.00017166]
[1767066557687,0.01162876,87394.0,87376.0,0.00017166]
[1767066558192,0.0114577,87390.0,87376.0,0.00017166]
[1767066559195,0.0114573,87393.0,87376.0,0.00017166]
[1767066559396,0.0114576,87390.0,87376.0,0.00017166]
[1767066559991,0.00017166,87394.0,87376.0,0.00017166]
[1767066560196,0.00017166,87394.0,87368.0,0.00228918]
[1767066560197,0.05748,87391.0,87368.0,0.00228918]
[1767066560394,0.011458,87387.0,87368.0,0.00228918]
[1767066560698,0.0689375,87391.0,87368.0,0.00228918]
[1767066560899,0.0689375,87391.0,87368.0,0.01374958]
[1767066561094,0.05748,87391.0,87372.0,0.0114598]
[1767066562197,0.05519161,87391.0,87372.0,0.0114598]
[1767066562493,0.05519161,87391.0,87371.0,0.00017166]
[1767066563489,0.15484,87390.0,87371.0,0.00017166]
[1767066563992,0.00017166,87394.0,87371.0,0.00017166]
[1767066564187,0.08202561,87423.0,87376.0,0.0114593]
[1767066564500,0.0114562,87401.0,87377.0,0.05748]
[1767066564801,0.0114564,87399.0,87377.0,0.05748]
[1767066565392,0.00017166,87397.0,87379.0,0.00017166]
[1767066567495,0.15484,87402.0,87380.0,0.0114588]
[1767066567701,0.0114543,87415.0,87379.0,0.00017166]
[1767066567702,0.09736,87409.0,87383.0,0.0114583]
[1767066568599,0.00017166,87405.0,87383.0,0.0114583]
[1767066569526,0.00017166,87405.0,87386.0,0.011458]
[1767066569799,0.00017166,87405.0,87385.0,0.06125734]
[1767066569800,0.00017166,87405.0,87388.0,0.0114578]
[1767066569999,0.00017166,87405.0,87395.0,0.0114568]
[1767066570595,0.00017166,87405.0,87390.0,0.0114575]
[1767066570790,0.00017166,87405.0,87393.0,0.0114571]
[1767066571003,0.05748,87410.0,87393.0,0.0114571]
[1767066571208,0.09736,87416.0,87393.0,0.0114571]
[1767066571612,0.09736,87416.0,87396.0,0.0114567]
[1767066572008,0.00017166,87415.0,87397.0,0.00017166]
[1767066576911,0.0114545,87414.0,87397.0,0.00017166]
[1767066577116,0.15574908,87410.0,87392.0,0.09736]
[1767066577709,0.15574908,87410.0,87390.0,0.15574908]
[1767066578118,0.15574908,87410.0,87391.0,0.00017166]
[1767066579515,0.15574908,87410.0,87387.0,0.09736]
[1767066580219,0.15574908,87410.0,87383.0,0.0114584]
[1767066580422,0.15574908,87410.0,87384.0,0.15484]
[1767066580607,0.00017166,87415.0,87388.0,0.00017166]
[1767066580813,0.15574908,87410.0,87390.0,0.15574908]
[1767066581132,0.05748,87409.0,87390.0,0.15574908]
[1767066581322,0.05748,87409.0,87388.0,0.00017166]
[1767066581522,0.05748,87409.0,87390.0,0.15574908]
[1767066581924,0.0114553,87408.0,87388.0,0.00017166]
[1767066582423,0.0114553,87408.0,87390.0,0.15574908]
[1767066582621,0.0114553,87408.0,87388.0,0.00017166]
[1767066583619,0.15574908,87400.0,87388.0,0.00017166]
[1767066583825,0.21318908,87400.0,87382.0,0.0114585]
[1767066584416,0.05744,87400.0,87380.0,0.15574908]
[1767066584617,0.0114564,87399.0,87374.0,0.06125734]
[1767066584823,0.00017166,87395.0,87380.0,0.15574908]
[1767066586830,0.00017166,87395.0,87378.0,0.00017166]
[1767066587126,0.00017166,87395.0,87380.0,0.15574908]
[1767066589329,0.00017166,87395.0,87378.0,0.00017166]
[1767066589826,0.011457,87394.0,87380.0,0.15574908]
[1767066590428,0.00017166,87395.0,87380.0,0.15574908]
[1767066595331,0.05744,87403.0,87385.0,0.15574908]
[1767066595529,0.05744,87403.0,87390.0,0.15574908]
[1767066595831,0.05744,87403.0,87381.0,0.0114587]
[1767066596218,0.00017166,87401.0,87381.0,0.0114587]
[1767066596716,0.00017166,87401.0,87390.0,0.15574908]
[1767066597427,0.00017166,87401.0,87389.0,0.05744]
[1767066597624,0.00017166,87401.0,87390.0,0.15574908]
[1767066600931,0.05744,87403.0,87390.0,0.15574908]
[1767066601230,0.15574908,87420.0,87391.0,0.09736]
[1767066601231,0.0688942,87416.0,87391.0,0.09736]
[1767066601435,0.0114546,87413.0,87391.0,0.09736]
[1767066602036,0.0114554,87407.0,87393.0,0.00017166]
[1767066602231,0.0114554,87407.0,87377.0,0.08172979]
[1767066602232,0.15574908,87401.0,87374.0,0.06125734]
[1767066602535,0.17886253,87406.0,87372.0,0.06335873]
[1767066602536,0.0114572,87393.0,87372.0,0.06335873]
[1767066602737,0.15574908,87390.0,87370.0,0.05744]
[1767066602944,0.09736,87391.0,87370.0,0.21318908]
[1767066603135,0.15574908,87380.0,87372.0,0.00017166]
[1767066603439,0.05744,87385.0,87372.0,0.00017166]
[1767066606340,0.05744,87388.0,87375.0,0.15574908]
[1767066606530,0.05744,87388.0,87372.0,0.00017166]
[1767066615431,0.09736,87391.0,87378.0,0.15574908]
[1767066615636,0.05744,87396.0,87373.0,0.0114597]
[1767066615840,0.05744,87396.0,87380.0,0.15574908]
[1767066617748,0.05744,87396.0,87381.0,0.0114587]
[1767066618947,0.05744,87396.0,87386.0,0.15574908]
[1767066619150,0.05744,87396.0,87381.0,0.0114587]
[1767066619446,0.05744,87396.0,87380.0,0.15574908]
[1767066621743,0.05744,87396.0,87378.0,0.0114591]
[1767066621949,0.05744,87396.0,87380.0,0.15574908]
[1767066622150,0.05744,87396.0,87378.0,0.0114591]
[1767066622448,0.05744,87396.0,87380.0,0.15574908]
[1767066624448,0.05744,87396.0,87380.0,0.16720788]
[1767066630652,0.05744,87396.0,87380.0,0.0114588]
[1767066630852,0.05744,87396.0,87380.0,0.16720788]
[1767066632758,0.05744,87396.0,87380.0,0.0114588]
[1767066632953,0.05744,87396.0,87380.0,0.16720788]
[1767066636262,0.05744,87396.0,87380.0,0.0114588]
[1767066637365,0.05744,87396.0,87383.0,0.0114585]
[1767066637562,0.05744,87396.0,87384.0,0.05744]
[1767066642067,0.05744,87396.0,87384.0,0.05744]
[1767066642466,0.05744,87396.0,87385.0,0.0114582]
[1767066642770,0.05744,87396.0,87384.0,0.05744]
[1767066643764,0.05744,87396.0,87384.0,0.0688983]
[1767066645371,0.05744,87396.0,87384.0,0.05744]
[1767066646366,0.05744,87396.0,87380.0,0.0114588]
[1767066646569,0.05744,87396.0,87381.0,0.05744]
[1767066647566,0.05744,87396.0,87380.0,0.0114588]
[1767066647777,0.05744,87396.0,87372.0,0.08190145]
[1767066647778,0.0114571,87394.0,87372.0,0.00017166]
[1767066648066,0.05744,87396.0,87372.0,0.00017166]
[1767066649564,0.0114569,87395.0,87372.0,0.00017166]
[1767066651070,0.0114578,87388.0,87368.0,0.00228918]
[1767066651270,0.00017166,87397.0,87347.0,0.09319289]
[1767066651271,0.0114581,87386.0,87363.0,0.068901]
[1767066651570,0.1548,87385.0,87361.0,0.05744]
[1767066651766,0.0114584,87384.0,87359.0,0.0114616]
[1767066652166,0.00017166,87380.0,87363.0,0.00017166]
[1767066652464,0.05744,87379.0,87363.0,0.00017166]
[1767066652669,0.05744,87379.0,87359.0,0.0114616]
[1767066653370,0.05744,87379.0,87358.0,0.05744]
[1767066653571,0.05744,87379.0,87360.0,0.00017166]
[1767066657577,0.05744,87379.0,87350.0,0.05744]
[1767066657877,0.0114595,87376.0,87350.0,0.05744]
[1767066658078,0.09736,87375.0,87350.0,0.05744]
[1767066658669,0.0114597,87374.0,87350.0,0.05744]
[1767066658978,0.0114602,87371.0,87350.0,0.05744]
[1767066659168,0.05744,87370.0,87350.0,0.05744]
[1767066660570,0.05744,87370.0,87349.0,0.05744]
[1767066662278,0.05744,87370.0,87350.0,0.0114627]
[1767066664280,0.05744,87370.0,87349.0,0.05744]
[1767066666981,0.05744,87370.0,87349.0,0.0689029]
[1767066667873,0.05744,87370.0,87349.0,0.05744]
[1767066668373,0.05744,87370.0,87351.0,0.0114627]
[1767066668983,0.05744,87370.0,87354.0,0.0114622]
[1767066672187,0.00017166,87380.0,87349.0,0.05744]
[1767066672378,0.05744,87379.0,87349.0,0.05744]
[1767066672576,0.05744,87379.0,87350.0,0.11446624]
[1767066673178,0.05744,87379.0,87359.0,0.0114615]
[1767066673494,0.05744,87379.0,87360.0,0.05744]
[1767066679506,0.05744,87379.0,87354.0,0.0114622]
[1767066679701,0.0114592,87378.0,87355.0,0.15484]
[1767066680401,0.0114592,87378.0,87354.0,0.0114622]
[1767066680600,0.0114592,87378.0,87353.0,0.05744]
[1767066681400,0.0114592,87378.0,87350.0,0.0114628]
[1767066681599,0.0114596,87375.0,87351.0,0.15484]
[1767066682207,0.0114596,87375.0,87350.0,0.0114628]
[1767066682411,0.05744,87379.0,87351.0,0.0974]
[1767066682707,0.05744,87379.0,87347.0,0.05744]
[1767066683005,0.05744,87379.0,87356.0,0.011462]
[1767066684510,0.0114576,87390.0,87360.0,0.15581369]
[1767066684717,0.05744,87392.0,87364.0,0.0114609]
[1767066685010,0.05744,87391.0,87364.0,0.0114609]
[1767066685713,0.00017166,87386.0,87369.0,0.00017166]
[1767066694310,0.00017166,87386.0,87369.0,0.01163186]
[1767066698522,0.00017166,87386.0,87376.0,0.15583649]
[1767066701419,0.00017166,87386.0,87371.0,0.01146]
[1767066702313,0.00017166,87386.0,87376.0,0.15583649]
[1767066704219,0.00017166,87386.0,87371.0,0.01146]
[1767066704422,0.00017166,87386.0,87376.0,0.15583649]
[1767066705023,0.00017166,87386.0,87370.0,0.15583649]
[1767066706718,0.00017166,87386.0,87371.0,0.05744]
[1767066707823,0.00017166,87386.0,87370.0,0.15583649]
[1767066708218,0.00017166,87386.0,87369.0,0.05761166]
[1767066708423,0.00017166,87386.0,87370.0,0.15583649]
[1767066709823,0.00017166,87386.0,87370.0,0.21327649]
[1767066710128,0.0114583,87385.0,87370.0,0.21327649]